Workbook

Sheet MSU
B1: Tuomo Ranttila | E1: 22.7.1968 Alajärvi
B2: SUPERPESIS | E2: Runkosarja | I2: Kärkilyönnit (KL), pesänvälit | P2: Ylempi loppusarja | W2: Alempi loppusarja | AD2: Arvo-ottelut | AH2: Mitalit
B3: Vuosi | C3: Sija | D3: Seura | E3: OTT | F3: KUN | G3: LÖI | H3: TOI | I3: KL | J3: 0 > 1 | K3: 1 > 2 | L3: 2 > 3 | M3: 3 > k | N3: KL-% | P3: OTT | Q3: KUN | R3: LÖI | S3: TOI | T3: KL | U3: KL-% | W3: OTT | X3: KUN | Y3: LÖI | Z3: TOI | AA3: KL | AB3: KL-% | AD3: IL | AE3: LL | AF3: hSM | AG3: K | AH3: H | AI3: P
B4: 1992 | C4: 8. | D4: SoSi | F4: suomensarja
B5: 1993 | C5: 5. | D5: SoSi | F5: suomensarja
B6: 1994 | F6: suomensarja
B7: 1995 | C7: 6. | D7: AA | E7: 2 | F7: 0 | G7: 1 | H7: 0 | I7: 4 | J7: 1 | K7: 0 | L7: 2 | M7: 1 | N7: 30.8 %
B8: 1996 | C8: 5. | D8: HPH | F8: ykköspesis
B9: 1997 | C9: 7. | D9: HPH | F9: ykköspesis
B10: 1998 | C10: 11. | D10: HPH | F10: ykköspesis
B11: 1999
B12: 2001
B13: 2002
B14: 2003 | C14: 2. | D14: Manse PP | F14: suomensarja
B15: 2004 | C15: 2. | D15: Manse PP | F15: suomensarja
B16: 2005 | C16: 3. | D16: Manse PP* | F16: suomensarja
B17: 2006 | C17: 1. | D17: Manse PP* | F17: suomensarja
B18: 2007 | C18: 9. | D18: Manse PP* | F18: ykköspesis
B19: Yhteensä | E19: 2 | F19: 0 | G19: 1 | H19: 0 | I19: 4 | J19: 1 | K19: 0 | L19: 2 | M19: 1 | N19: 30.8 % | P19: 0 | Q19: 0 | R19: 0 | S19: 0 | T19: 0 | U19: 0.0 % | W19: =PRODUCT(E25) -> 0 | X19: =PRODUCT(F25) -> 0 | Y19: 0 | Z19: 0 | AA19: 0 | AB19: =PRODUCT(N25) -> 0.0 % | AD19: 0 | AE19: 0 | AF19: 0 | AG19: 0 | AH19: 0 | AI19: 0
B20: Pesispörssi | D20: 2.7
B22: URA SUPERISSA | E22: OTT | F22: KUN | G22: LÖI | H22: TOI | I22: KL | K22: ka/L | L22: ka/T | M22: ka/KL | N22: KL-% | O22: 34.04255319 | P22: ENSIMMÄISET RUNKOSARJASSA
B23: Runkosarja | E23: 2 | F23: 0 | G23: 1 | H23: 0 | I23: 4 | K23: 0.50 | L23: 0.00 | M23: 2.00 | N23: 30.8 % | P23: Ottelu | R23: 07.05. 1995 AA - Tahko 1-2 (0-4, 3-2, 0-2) | AA23: 1. ottelu | AC23: 26 v 9 kk 16 pv
B24: Ylempi loppusarja | P24: Lyöty | R24: 07.05. 1995 AA - Tahko 1-2 (0-4, 3-2, 0-2) | AA24: 1. ottelu | AC24: 26 v 9 kk 16 pv
B25: Alempi loppusarja | O25: 34.04255319 | P25: Tuotu
B26: KAIKKI | E26: 2 | F26: 0 | G26: 1 | H26: 0 | I26: 4 | K26: 0.50 | L26: 0.00 | M26: 2.00 | N26: 30.8 % | P26: Kunnari
B28: Seurat | D28: AA = Alajärven Ankkurit (1944), kasvattajaseura
D29: SoSi = Soinin Sisu (1927)
D30: HPH = Hämeen Pesä-Haukat (1995)
D31: Manse PP = Mansen Pesäpallo (1978)
D32: Manse PP* = Manse PP, Tampere (2005)

Sheet MYP, MSS
B1: Tuomo Ranttila | E1: 22.7.1968 Alajärvi
B2: YKKÖSPESIS | E2: Runkosarja | L2: Runkosarja TOP-10 | Q2: Jatkosarjat | X2: SUOMENSARJA | AA2: Runkosarja | AH2: Runkosarja TOP-10 | AM2: Jatkosarjat
B3: Vuosi | C3: Sija | D3: Seura | E3: OTT | F3: KUN | G3: LÖI | H3: TOI | I3: KL | J3: KL-% | L3: LÖI | M3: TOI | N3: L+T | O3: KL | Q3: OTT | R3: KUN | S3: LÖI | T3: TOI | U3: KL | V3: KL-% | X3: Vuosi | Y3: Sija | Z3: Seura | AA3: OTT | AB3: KUN | AC3: LÖI | AD3: TOI | AE3: KL | AF3: KL-% | AH3: LÖI | AI3: TOI | AJ3: L+T | AK3: KL | AM3: OTT | AN3: KUN | AO3: LÖI | AP3: TOI | AQ3: KL | AR3: KL-%
X4: 1992 | Y4: 8. | Z4: SoSi | AA4: 22 | AB4: 0 | AC4: 9 | AD4: 25
X5: 1993 | Y5: 5. | Z5: SoSi | AA5: 21 | AB5: 2 | AC5: 12 | AD5: 20
B7: 1996 | C7: 5. | D7: HPH | E7: 24 | F7: 1 | G7: 6 | H7: 8 | I7: 47
B8: 1997 | C8: 7. | D8: HPH | E8: 23 | F8: 1 | G8: 13 | H8: 5 | I8: 76
B9: 1998 | C9: 11. | D9: HPH | E9: 24 | F9: 0 | G9: 12 | H9: 5 | I9: 51
X11: 2003 | Y11: 2. | Z11: Manse PP | AA11: 14 | AB11: 0 | AC11: 3 | AD11: 4 | AE11: 25 | AF11: 34.7 % | AG11: 72 | AM11: 5 | AN11: 0 | AO11: 3 | AP11: 0 | AQ11: 13 | AR11: 48.1 % | AS11: 27
X12: 2004 | Y12: 2. | Z12: Manse PP | AA12: 16 | AB12: 1 | AC12: 5 | AD12: 8 | AE12: 50 | AF12: 57.5 % | AG12: 87 | AM12: 4 | AN12: 0 | AO12: 2 | AP12: 1 | AQ12: 11 | AR12: 42.3 % | AS12: 26
X13: 2005 | Y13: 3. | Z13: Manse PP* | AA13: 14 | AB13: 2 | AC13: 12 | AD13: 5 | AE13: 49 | AF13: 57.0 % | AG13: 86
X14: 2006 | Y14: 1. | Z14: Manse PP* | AA14: 15 | AB14: 0 | AC14: 28 | AD14: 3 | AE14: 61 | AF14: 53.5 % | AG14: 114 | AH14: 9. | AM14: 7 | AN14: 0 | AO14: 1 | AP14: 1 | AQ14: 20 | AR14: 58.8 % | AS14: 34
B15: 2007 | C15: 9. | D15: Manse PP | E15: 2 | F15: 0 | G15: 1 | H15: 0 | I15: 1 | J15: 16.7 % | K15: 6
B16: YHTEENSÄ | E16: =SUM(E4:E15) -> 73 | F16: =SUM(F4:F15) -> 2 | G16: =SUM(G4:G15) -> 32 | H16: =SUM(H4:H15) -> 18 | I16: =SUM(I4:I15) -> 175 | J16: 0.0 % | K16: =SUM(K4:K15) -> 6 | Q16: =SUM(Q4:Q15) -> 0 | R16: =SUM(R4:R15) -> 0 | S16: =SUM(S4:S15) -> 0 | T16: =SUM(T4:T15) -> 0 | U16: =SUM(U4:U15) -> 0 | V16: 0.0 % | W16: =SUM(W4:W15) -> 0 | X16: YHTEENSÄ | AA16: =SUM(AA4:AA15) -> 102 | AB16: =SUM(AB4:AB15) -> 5 | AC16: =SUM(AC4:AC15) -> 69 | AD16: =SUM(AD4:AD15) -> 65 | AE16: =SUM(AE4:AE15) -> 185 | AF16: =PRODUCT(AE16/AG16) -> 51.5 % | AG16: =SUM(AG4:AG15) -> 359 | AM16: =SUM(AM4:AM15) -> 16 | AN16: =SUM(AN4:AN15) -> 0 | AO16: =SUM(AO4:AO15) -> 6 | AP16: =SUM(AP4:AP15) -> 2 | AQ16: =SUM(AQ4:AQ15) -> 44 | AR16: =PRODUCT(AQ16/AS16) -> 50.6 % | AS16: =SUM(AS4:AS15) -> 87
B18: KAIKKI OTTELUT | E18: OTT | F18: KUN | G18: LÖI | H18: TOI | I18: KL | J18: KL-% | L18: ka/L | M18: ka/T | N18: ka/l+t | O18: ka/kl | R18: Seurat | T18: AA = Alajärven Ankkurit (1944), kasvattajaseura
B19: SUPERPESIS | E19: 2 | F19: 0 | G19: 1 | H19: 0 | I19: 4 | J19: 30.8 % | K19: =PRODUCT(I19/J19) -> 12.98701299 | L19: =PRODUCT((F19+G19)/E19) -> 0.50 | M19: =PRODUCT(H19/E19) -> 0.00 | N19: =PRODUCT((F19+G19+H19)/E19) -> 0.50 | O19: 2.00 | T19: SoSi = Soinin Sisu (1927)
B20: YKKÖSPESIS | E20: =PRODUCT(E16+Q16) -> 73 | F20: =PRODUCT(F16+R16) -> 2 | G20: =PRODUCT(G16+S16) -> 32 | H20: =PRODUCT(H16+T16) -> 18 | I20: =PRODUCT(I16+U16) -> 175 | K20: =PRODUCT(K16+W16) -> 6 | L20: =PRODUCT((F20+G20)/E20) -> 0.47 | M20: =PRODUCT(H20/E20) -> 0.25 | N20: =PRODUCT((F20+G20+H20)/E20) -> 0.71 | O20: 2.40 | T20: HPH = Hämeen Pesä-Haukat, Tampere (1995)
B21: SUOMENSARJA | E21: =PRODUCT(AA16+AM16) -> 118 | F21: =PRODUCT(AB16+AN16) -> 5 | G21: =PRODUCT(AC16+AO16) -> 75 | H21: =PRODUCT(AD16+AP16) -> 67 | I21: =PRODUCT(AE16+AQ16) -> 229 | J21: =PRODUCT(I21/K21) -> 51.3 % | K21: =PRODUCT(AG16+AS16) -> 446 | L21: =PRODUCT((F21+G21)/E21) -> 0.68 | M21: =PRODUCT(H21/E21) -> 0.57 | N21: =PRODUCT((F21+G21+H21)/E21) -> 1.25 | O21: 3.05 | T21: Manse PP = Mansen Pesäpallo (1978)
B22: YHTEENSÄ | E22: =SUM(E19:E21) -> 193 | F22: =SUM(F19:F21) -> 7 | G22: 108 | H22: 85 | I22: 408 | K22: =SUM(K19:K21) -> 464.987013 | L22: =PRODUCT((F22+G22)/E22) -> 0.60 | M22: =PRODUCT(H22/E22) -> 0.44 | N22: =PRODUCT((F22+G22+H22)/E22) -> 1.04 | O22: 2.72 | T22: Manse PP* = Manse PP, Tampere (2005)
